Workbook

Sheet ka1_turnover
A1: Name | B1: Parameter | C1: Units | D1: Description
A2: CL | B2: 1 | C2: L/h | D2: Clearance
A3: V | B3: 10 | C3: L | D3: Volume of distribution
A4: ThalfAbs | B4: 1 | C4: h | D4: Absorption half-life
A5: Emax | B5: -1 | C5: unit | D5: Maximum drug effect
A6: C50 | B6: 1.5 | C6: mg/L | D6: Drug conc at 50% of Emax
A7: PCA0 | B7: 1 | C7: unit | D7: Prothrombin Complex Activity at time=0
A8: ThalfPCA | B8: 24 | C8: h | D8: PCA half-life
B10: Dosing
A11: Dose | B11: 100 | C11: mg | D11: Drug dose at time=0
B13: Graph
A14: Tmax | B14: 168 | C14: h | D14: Time course maximum
A28: Time course of prothrombin complex activity (PCA) described by PCA turnover with inhibition of synthesis; INR=International Normalized Ratio
A29: Holford N. Clinical pharmacokinetics and pharmacodynamics of warfarin. Understanding the dose-effect relationship. Clin Pharmacokinet. 1986;11(6):483-504.

Sheet Calc
A1: Time | B1: Gut | C1: Central | D1: PCA | E1: Conc | F1: INR | G1: FuncName | H1: KA1_TO | J1: Nick Holford | K1: n.holford@auckland.ac.nz | N1: 2021-03-02
A2: 0 | B2: =ODE(FuncName,Initial,Time,Parameter,Eps,Step,Maxits) -> 100 | C2: 0 | D2: 1 | E2: =Central/ka1_turnover!V -> 0 | F2: =1/PCA -> 1 | G2: Eps | H2: 1e-09
A3: =+A2+Tmax/MaxTimeSteps -> 0.84 | B3: 55.8643569 | C3: 42.16136842 | D3: 0.986611707 | E3: =Central/ka1_turnover!V -> 4.216136842 | F3: 1.013569972 | G3: Step | H3: 0.01 | I3: h | J3: Protection Password | L3: pkpdrx
A4: =+A3+Tmax/200 -> 1.68 | B4: 31.20826372 | C4: 62.31765725 | D4: 0.9682433767 | E4: =Central/ka1_turnover!V -> 6.231765725 | F4: 1.032798183 | G4: Maxits | H4: 10000
A5: 2.52 | B5: 17.43429583 | C5: 70.45463293 | D5: 0.9494177469 | E5: =Central/ka1_turnover!V -> 7.045463293 | F5: 1.05327713
A6: 3.36 | B6: 9.739557245 | C6: 72.12872935 | D6: 0.9308098391 | E6: =Central/ka1_turnover!V -> 7.212872935 | F6: 1.074333293
A7: 4.2 | B7: 5.44094102 | C7: 70.42373884 | D7: 0.9126579902 | E7: =Central/ka1_turnover!V -> 7.042373884 | F7: 1.095700701
A8: 5.04 | B8: 3.03954671 | C8: 67.04376185 | D8: 0.8950730596 | E8: =Central/ka1_turnover!V -> 6.704376185 | F8: 1.117227236 | H8: Initial
A9: 5.88 | B9: 1.698023222 | C9: 62.92364466 | D9: 0.878114149 | E9: =Central/ka1_turnover!V -> 6.292364466 | F9: 1.138804108 | G9: Gut | H9: =ka1_turnover!Dose -> 100 | I9: mg
A10: 6.72 | B10: 0.948589753 | C10: 58.56987547 | D10: 0.8618151959 | E10: =Central/ka1_turnover!V -> 5.856987547 | F10: 1.160341573 | G10: Central | H10: 0 | I10: mg/L
A11: 7.56 | B11: 0.529923565 | C11: 54.2509126 | D11: 0.846196477 | E11: =Central/ka1_turnover!V -> 5.42509126 | F11: 1.181758643 | G11: PCA | H11: 1 | I11: unit
A12: 8.4 | B12: 0.2960383915 | C12: 50.10340774 | D12: 0.8312702961 | E12: =Central/ka1_turnover!V -> 5.010340774 | F12: 1.202978146
A13: 9.24 | B13: 0.1653799434 | C13: 46.19145295 | D13: 0.8170440496 | E13: =Central/ka1_turnover!V -> 4.619145295 | F13: 1.223924219 | G13: MaxTimeSteps | H13: 200
A14: 10.08 | B14: 0.09238844171 | C14: 42.53959205 | D14: 0.8035219588 | E14: =Central/ka1_turnover!V -> 4.253959205 | F14: 1.24452106
A15: 10.92 | B15: 0.05161220866 | C15: 39.15118279 | D15: 0.7907060672 | E15: =Central/ka1_turnover!V -> 3.915118279 | F15: 1.264692458
A16: 11.76 | B16: 0.02883282831 | C16: 36.01858158 | D16: 0.778596807 | E16: =Central/ka1_turnover!V -> 3.601858158 | F16: 1.284361805
A17: 12.6 | B17: 0.01610727398 | C17: 33.12876602 | D17: 0.7671933031 | E17: =Central/ka1_turnover!V -> 3.312876602 | F17: 1.303452462
A18: 13.44 | B18: 0.00899822487 | C18: 30.466414 | D18: 0.7564935168 | E18: =Central/ka1_turnover!V -> 3.0466414 | F18: 1.321888394
A19: 14.28 | B19: 0.00502680035 | C19: 28.01556707 | D19: 0.746494289 | E19: =Central/ka1_turnover!V -> 2.801556707 | F19: 1.339594977
A20: 15.12 | B20: 0.00280818958 | C20: 25.76050739 | D20: 0.7371913243 | E20: =Central/ka1_turnover!V -> 2.576050739 | F20: 1.356499957
A21: 15.96 | B21: 0.001568776925 | C21: 23.68619964 | D21: 0.7285791423 | E21: =Central/ka1_turnover!V -> 2.368619964 | F21: 1.372534488
A22: 16.8 | B22: 0.0008763870648 | C22: 21.7784937 | D22: 0.7206510132 | E22: =Central/ka1_turnover!V -> 2.17784937 | F22: 1.387634211
A23: 17.64 | B23: 0.0004895879144 | C23: 20.02419732 | D23: 0.7133988918 | E23: =Central/ka1_turnover!V -> 2.002419732 | F23: 1.401740333
A24: 18.48 | B24: 0.0002735050767 | C24: 18.41107931 | D24: 0.7068133576 | E24: =Central/ka1_turnover!V -> 1.841107931 | F24: 1.414800653
A25: 19.32 | B25: 0.0001527918186 | C25: 16.92783709 | D25: 0.7008835683 | E25: =Central/ka1_turnover!V -> 1.692783709 | F25: 1.426770501
A26: 20.16 | B26: 8.535614966e-05 | C26: 15.56404694 | D26: 0.6955972311 | E26: =Central/ka1_turnover!V -> 1.556404694 | F26: 1.437613543
A27: 21 | B27: 4.768365455e-05 | C27: 14.31010721 | D27: 0.690940594 | E27: =Central/ka1_turnover!V -> 1.431010721 | F27: 1.447302429
A28: 21.84 | B28: 2.663816155e-05 | C28: 13.15717995 | D28: 0.686898461 | E28: =Central/ka1_turnover!V -> 1.315717995 | F28: 1.455819247
A29: 22.68 | B29: 1.48812345e-05 | C29: 12.09713372 | D29: 0.6834542298 | E29: =Central/ka1_turnover!V -> 1.209713372 | F29: 1.46315577
A30: 23.52 | B30: 8.313304095e-06 | C30: 11.12248913 | D30: 0.6805899527 | E30: =Central/ka1_turnover!V -> 1.112248913 | F30: 1.469313492
A31: 24.36 | B31: 4.644172764e-06 | C31: 10.22636765 | D31: 0.6782864202 | E31: =Central/ka1_turnover!V -> 1.022636765 | F31: 1.474303436
A32: 25.2 | B32: 2.594436585e-06 | C32: 9.402444016 | D32: 0.6765232642 | E32: =Central/ka1_turnover!V -> 0.9402444016 | F32: 1.478145768
A33: 26.04 | B33: 1.449364913e-06 | C33: 8.644902005 | D33: 0.6752790793 | E33: =Central/ka1_turnover!V -> 0.8644902005 | F33: 1.480869215
A34: 26.88 | B34: 8.096781455e-07 | C34: 7.948393721 | D34: 0.674531559 | E34: =Central/ka1_turnover!V -> 0.7948393721 | F34: 1.482510324
A35: 27.72 | B35: 4.523213419e-07 | C35: 7.308001964 | D35: 0.6742576427 | E35: =Central/ka1_turnover!V -> 0.7308001964 | F35: 1.483112592
A36: =+A35+Tmax/200 -> 28.56 | B36: 2.526863194e-07 | C36: 6.719205616 | D36: 0.6744336719 | E36: =Central/ka1_turnover!V -> 0.6719205616 | F36: 1.482725495
A37: 29.4 | B37: 1.411615329e-07 | C37: 6.177847766 | D37: 0.6750355494 | E37: =Central/ka1_turnover!V -> 0.6177847766 | F37: 1.481403462
A38: 30.24 | B38: 7.885894945e-08 | C38: 5.680106391 | D38: 0.6760389002 | E38: =Central/ka1_turnover!V -> 0.5680106391 | F38: 1.47920482
A39: 31.08 | B39: 4.405402479e-08 | C39: 5.222467387 | D39: 0.6774192303 | E39: =Central/ka1_turnover!V -> 0.5222467387 | F39: 1.476190748
A40: 31.92 | B40: 2.461048537e-08 | C40: 4.801699768 | D40: 0.6791520792 | E40: =Central/ka1_turnover!V -> 0.4801699768 | F40: 1.472424263
A41: 32.76 | B41: 1.374848192e-08 | C41: 4.414832859 | D41: 0.6812131656 | E41: =Central/ka1_turnover!V -> 0.4414832859 | F41: 1.46796928
A42: 33.6 | B42: 7.680496477e-09 | C42: 4.059135327 | D42: 0.6835785225 | E42: =Central/ka1_turnover!V -> 0.4059135327 | F42: 1.46288973
A43: 34.44 | B43: 4.290657211e-09 | C43: 3.732095896 | D43: 0.6862246208 | E43: =Central/ka1_turnover!V -> 0.3732095896 | F43: 1.457248792
A44: 35.28 | B44: 2.396946804e-09 | C44: 3.431405619 | D44: 0.6891284804 | E44: =Central/ka1_turnover!V -> 0.3431405619 | F44: 1.451108216
A45: 36.12 | B45: 1.339037904e-09 | C45: 3.154941579 | D45: 0.6922677668 | E45: =Central/ka1_turnover!V -> 0.3154941579 | F45: 1.444527751
A46: 36.96 | B46: 7.480446905e-10 | C46: 2.9007519 | D46: 0.6956208751 | E46: =Central/ka1_turnover!V -> 0.29007519 | F46: 1.437564679
A47: 37.8 | B47: 4.178899843e-10 | C47: 2.667041963 | D47: 0.6991669987 | E47: =Central/ka1_turnover!V -> 0.2667041963 | F47: 1.430273457
A48: 38.64 | B48: 2.334515123e-10 | C48: 2.452161742 | D48: 0.7028861853 | E48: =Central/ka1_turnover!V -> 0.2452161742 | F48: 1.422705441
A49: 39.48 | B49: 1.304160515e-10 | C49: 2.254594151 | D49: 0.7067593797 | E49: =Central/ka1_turnover!V -> 0.2254594151 | F49: 1.414908707
A50: 40.32 | B50: 7.285607859e-11 | C50: 2.072944332 | D50: 0.7107684543 | E50: =Central/ka1_turnover!V -> 0.2072944332 | F50: 1.406927944
A51: 41.16 | B51: 4.070053123e-11 | C51: 1.905929811 | D51: 0.7148962282 | E51: =Central/ka1_turnover!V -> 0.1905929811 | F51: 1.398804415
A52: 42 | B52: 2.273708579e-11 | C52: 1.75237144 | D52: 0.7191264763 | E52: =Central/ka1_turnover!V -> 0.175237144 | F52: 1.390575974
A53: 42.84 | B53: 1.270190933e-11 | C53: 1.611185075 | D53: 0.7234439293 | E53: =Central/ka1_turnover!V -> 0.1611185075 | F53: 1.382277132
A54: 43.68 | B54: 7.09583756e-12 | C54: 1.481373917 | D54: 0.7278342657 | E54: =Central/ka1_turnover!V -> 0.1481373917 | F54: 1.373939161
A55: 44.52 | B55: 3.964037803e-12 | C55: 1.362021481 | D55: 0.7322840963 | E55: =Central/ka1_turnover!V -> 0.1362021481 | F55: 1.36559022
A56: 45.36 | B56: 2.214482931e-12 | C56: 1.252285121 | D56: 0.7367809439 | E56: =Central/ka1_turnover!V -> 0.1252285121 | F56: 1.357255516
A57: 46.2 | B57: 1.237106212e-12 | C57: 1.151390082 | D57: 0.7413132173 | E57: =Central/ka1_turnover!V -> 0.1151390082 | F57: 1.348957467
A58: 47.04 | B58: 6.91101404e-13 | C58: 1.058624029 | D58: 0.7458701815 | E58: =Central/ka1_turnover!V -> 0.1058624029 | F58: 1.340715884
A59: 47.88 | B59: 3.860785465e-13 | C59: 0.973332021 | D59: 0.7504419253 | E59: =Central/ka1_turnover!V -> 0.0973332021 | F59: 1.332548151
A60: 48.72 | B60: 2.15680272e-13 | C60: 0.8949118827 | D60: 0.7550193262 | E60: =Central/ka1_turnover!V -> 0.08949118827 | F60: 1.324469408
A61: 49.56 | B61: 1.204881343e-13 | C61: 0.8228099564 | D61: 0.7595940137 | E61: =Central/ka1_turnover!V -> 0.08228099564 | F61: 1.316492734
A62: 50.4 | B62: 6.730977462e-14 | C62: 0.7565171917 | D62: 0.7641583319 | E62: =Central/ka1_turnover!V -> 0.07565171917 | F62: 1.308629322
A63: 51.24 | B63: 3.760209075e-14 | C63: 0.6955655518 | D63: 0.7687053014 | E63: =Central/ka1_turnover!V -> 0.06955655518 | F63: 1.300888648
A64: 52.08 | B64: 2.100612039e-14 | C64: 0.6395247089 | D64: 0.7732285812 | E64: =Central/ka1_turnover!V -> 0.06395247089 | F64: 1.29327863
A65: 52.92 | B65: 1.173490848e-14 | C65: 0.5879990064 | D65: 0.7777224309 | E65: =Central/ka1_turnover!V -> 0.05879990064 | F65: 1.285805784
A66: 53.76 | B66: 6.555616866e-15 | C66: 0.540624665 | D66: 0.7821816737 | E66: =Central/ka1_turnover!V -> 0.0540624665 | F66: 1.278475364
A67: 54.6 | B67: 3.662245219e-15 | C67: 0.4970672148 | D67: 0.7866016603 | E67: =Central/ka1_turnover!V -> 0.04970672148 | F67: 1.271291494
A68: =+A67+Tmax/200 -> 55.44 | B68: 2.04588528e-15 | C68: 0.4570191336 | D68: 0.7909782338 | E68: =Central/ka1_turnover!V -> 0.04570191336 | F68: 1.264257292
A69: 56.28 | B69: 1.142918163e-15 | C69: 0.4201976761 | D69: 0.7953076957 | E69: =Central/ka1_turnover!V -> 0.04201976761 | F69: 1.257374983
A70: 57.12 | B70: 6.384824898e-16 | C70: 0.3863428771 | D70: 0.7995867738 | E70: =Central/ka1_turnover!V -> 0.03863428771 | F70: 1.250646
A71: 57.96 | B71: 3.566833593e-16 | C71: 0.3552157168 | D71: 0.803812591 | E71: =Central/ka1_turnover!V -> 0.03552157168 | F71: 1.244071082
A72: 58.8 | B72: 1.992584305e-16 | C72: 0.3265964326 | D72: 0.807982636 | E72: =Central/ka1_turnover!V -> 0.03265964326 | F72: 1.23765036
A73: 59.64 | B73: 1.113141981e-16 | C73: 0.3002829683 | D73: 0.8120947353 | E73: =Central/ka1_turnover!V -> 0.03002829683 | F73: 1.231383429
A74: 60.48 | B74: 6.218482534e-17 | C74: 0.2760895467 | D74: 0.8161470267 | E74: =Central/ka1_turnover!V -> 0.02760895467 | F74: 1.225269427
A75: 61.32 | B75: 3.473907703e-17 | C75: 0.2538453587 | D75: 0.8201379347 | E75: =Central/ka1_turnover!V -> 0.02538453587 | F75: 1.219307092
A76: 62.16 | B76: 1.940671967e-17 | C76: 0.233393357 | D76: 0.8240661469 | E76: =Central/ka1_turnover!V -> 0.0233393357 | F76: 1.213494819
A77: 63 | B77: 1.084141551e-17 | C77: 0.2145891474 | D77: 0.8279305919 | E77: =Central/ka1_turnover!V -> 0.02145891474 | F77: 1.207830716
A78: 63.84 | B78: 6.056473849e-18 | C78: 0.1972999693 | D78: 0.8317304194 | E78: =Central/ka1_turnover!V -> 0.01972999693 | F78: 1.202312644
A79: 64.68 | B79: 3.383402791e-18 | C79: 0.1814037586 | D79: 0.8354649802 | E79: =Central/ka1_turnover!V -> 0.01814037586 | F79: 1.19693826
A80: 65.52 | B80: 1.89011209e-18 | C80: 0.1667882856 | D80: 0.8391338093 | E80: =Central/ka1_turnover!V -> 0.01667882856 | F80: 1.191705052
A81: 66.36 | B81: 1.055896662e-18 | C81: 0.1533503629 | D81: 0.8427366084 | E81: =Central/ka1_turnover!V -> 0.01533503629 | F81: 1.186610371
A82: 67.2 | B82: 5.898685938e-19 | C82: 0.1409951168 | D82: 0.8462732311 | E82: =Central/ka1_turnover!V -> 0.01409951168 | F82: 1.181651461
A83: 68.04 | B83: 3.295255781e-19 | C83: 0.1296353174 | D83: 0.8497436683 | E83: =Central/ka1_turnover!V -> 0.01296353174 | F83: 1.17682548
A84: 68.88 | B84: 1.840869437e-19 | C84: 0.1191907627 | D84: 0.8531480349 | E84: =Central/ka1_turnover!V -> 0.01191907627 | F84: 1.172129524
A85: 69.72 | B85: 1.028387631e-19 | C85: 0.1095877126 | D85: 0.8564865578 | E85: =Central/ka1_turnover!V -> 0.01095877126 | F85: 1.167560648
A86: 70.56 | B86: 5.74500884e-20 | C86: 0.1007583683 | D86: 0.8597595644 | E86: =Central/ka1_turnover!V -> 0.01007583683 | F86: 1.163115877
A87: 71.4 | B87: 3.209405246e-20 | C87: 0.09264039309 | D87: 0.8629674723 | E87: =Central/ka1_turnover!V -> 0.009264039309 | F87: 1.158792228
A88: 72.24 | B88: 1.792909692e-20 | C88: 0.08517647298 | D88: 0.8661107793 | E88: =Central/ka1_turnover!V -> 0.008517647298 | F88: 1.154586716
A89: 73.08 | B89: 1.001595286e-20 | C89: 0.07831391154 | D89: 0.8691900552 | E89: =Central/ka1_turnover!V -> 0.007831391154 | F89: 1.150496366
A90: 73.92 | B90: 5.595335455e-21 | C90: 0.07200425806 | D90: 0.872205933 | E90: =Central/ka1_turnover!V -> 0.007200425806 | F90: 1.146518227
A91: 74.76 | B91: 3.125791354e-21 | C91: 0.06620296542 | D91: 0.8751591018 | E91: =Central/ka1_turnover!V -> 0.006620296542 | F91: 1.142649374
A92: 75.6 | B92: 1.746199431e-21 | C92: 0.06086907566 | D92: 0.8780502999 | E92: =Central/ka1_turnover!V -> 0.006086907566 | F92: 1.138886918
A93: 76.44 | B93: 9.75500956e-22 | C93: 0.05596493068 | D93: 0.8808803085 | E93: =Central/ka1_turnover!V -> 0.005596493068 | F93: 1.13522801
A94: 77.28 | B94: 5.449561477e-22 | C94: 0.05145590651 | D94: 0.8836499457 | E94: =Central/ka1_turnover!V -> 0.005145590651 | F94: 1.131669848
A95: 78.12 | B95: 3.044355836e-22 | C95: 0.04731016876 | D95: 0.8863600618 | E95: =Central/ka1_turnover!V -> 0.004731016876 | F95: 1.128209678
A96: 78.96 | B96: 1.700706102e-22 | C96: 0.04349844788 | D96: 0.8890115339 | E96: =Central/ka1_turnover!V -> 0.004349844788 | F96: 1.124844799
A97: 79.8 | B97: 9.500864556e-23 | C97: 0.03999383257 | D97: 0.8916052621 | E97: =Central/ka1_turnover!V -> 0.003999383257 | F97: 1.121572564
A98: 80.64 | B98: 5.307585314e-23 | C98: 0.03677157972 | D98: 0.8941421649 | E98: =Central/ka1_turnover!V -> 0.003677157972 | F98: 1.118390385
A99: 81.48 | B99: 2.965041939e-23 | C99: 0.03380893973 | D99: 0.896623176 | E99: =Central/ka1_turnover!V -> 0.003380893973 | F99: 1.11529573
A100: =+A99+Tmax/200 -> 82.32 | B100: 1.656398e-23 | C100: 0.03108499592 | D100: 0.8990492411 | E100: =Central/ka1_turnover!V -> 0.003108499592 | F100: 1.112286129
A101: 83.16 | B101: 9.253340732e-24 | C101: 0.02858051684 | D101: 0.9014213144 | E101: =Central/ka1_turnover!V -> 0.002858051684 | F101: 1.109359169
A102: 84 | B102: 5.169308023e-24 | C102: 0.0262778205 | D102: 0.9037403565 | E102: =Central/ka1_turnover!V -> 0.00262778205 | F102: 1.106512499
A103: 84.84 | B103: 2.887794388e-24 | C103: 0.02416064951 | D103: 0.9060073313 | E103: =Central/ka1_turnover!V -> 0.002416064951 | F103: 1.103743828
A104: 85.68 | B104: 1.613244247e-24 | C104: 0.02221405632 | D104: 0.9082232046 | E104: =Central/ka1_turnover!V -> 0.002221405632 | F104: 1.101050925
A105: 86.52 | B105: 9.012265589e-25 | C105: 0.02042429771 | D105: 0.9103889414 | E105: =Central/ka1_turnover!V -> 0.002042429771 | F105: 1.09843162
A106: 87.36 | B106: 5.034633238e-25 | C106: 0.0187787377 | D106: 0.9125055043 | E106: =Central/ka1_turnover!V -> 0.00187787377 | F106: 1.0958838
A107: 88.2 | B107: 2.81255935e-25 | C107: 0.01726575839 | D107: 0.9145738522 | E107: =Central/ka1_turnover!V -> 0.001726575839 | F107: 1.093405412
A108: 89.04 | B108: 1.571214768e-25 | C108: 0.01587467792 | D108: 0.9165949385 | E108: =Central/ka1_turnover!V -> 0.001587467792 | F108: 1.09099446
A109: 89.88 | B109: 8.777471122e-26 | C109: 0.01459567506 | D109: 0.9185697101 | E109: =Central/ka1_turnover!V -> 0.001459567506 | F109: 1.088649004
A110: 90.72 | B110: 4.903467105e-26 | C110: 0.01341971985 | D110: 0.9204991059 | E110: =Central/ka1_turnover!V -> 0.001341971985 | F110: 1.086367161
A111: 91.56 | B111: 2.739284392e-26 | C111: 0.01233850988 | D111: 0.9223840563 | E111: =Central/ka1_turnover!V -> 0.001233850988 | F111: 1.0841471
A112: 92.4 | B112: 1.530280273e-26 | C112: 0.01134441164 | D112: 0.9242254817 | E112: =Central/ka1_turnover!V -> 0.001134441164 | F112: 1.081987047
A113: 93.24 | B113: 8.5487937e-27 | C113: 0.01043040664 | D113: 0.9260242925 | E113: =Central/ka1_turnover!V -> 0.001043040664 | F113: 1.079885277
A114: 94.08 | B114: 4.775718212e-27 | C114: 0.009590041879 | D114: 0.9277813876 | E114: =Central/ka1_turnover!V -> 0.0009590041879 | F114: 1.077840118
A115: 94.92 | B115: 2.667918451e-27 | C115: 0.00881738425 | D115: 0.9294976542 | E115: =Central/ka1_turnover!V -> 0.000881738425 | F115: 1.075849945
A116: 95.76 | B116: 1.490412236e-27 | C116: 0.008106978676 | D116: 0.9311739676 | E116: =Central/ka1_turnover!V -> 0.0008106978676 | F116: 1.073913184
A117: 96.6 | B117: 8.326073957e-28 | C117: 0.007453809587 | D117: 0.9328111901 | E117: =Central/ka1_turnover!V -> 0.0007453809587 | F117: 1.072028306
A118: 97.44 | B118: 4.651297532e-28 | C118: 0.006853265511 | D118: 0.9344101712 | E118: =Central/ka1_turnover!V -> 0.0006853265511 | F118: 1.07019383
A119: 98.28 | B119: 2.598411789e-28 | C119: 0.006301106517 | D119: 0.9359717469 | E119: =Central/ka1_turnover!V -> 0.0006301106517 | F119: 1.068408318
A120: 99.12 | B120: 1.451582871e-28 | C120: 0.005793434279 | D120: 0.9374967397 | E120: =Central/ka1_turnover!V -> 0.0005793434279 | F120: 1.066670376
A121: 99.96 | B121: 8.109156681e-29 | C121: 0.005326664556 | D121: 0.9389859585 | E121: =Central/ka1_turnover!V -> 0.0005326664556 | F121: 1.064978652
A122: 100.8 | B122: 4.530118354e-29 | C122: 0.004897501884 | D122: 0.9404401981 | E122: =Central/ka1_turnover!V -> 0.0004897501884 | F122: 1.063331833
A123: 101.64 | B123: 2.530715969e-29 | C123: 0.004502916308 | D123: 0.9418602394 | E123: =Central/ka1_turnover!V -> 0.0004502916308 | F123: 1.06172865
A124: 102.48 | B124: 1.413765119e-29 | C124: 0.004140121997 | D124: 0.943246849 | E124: =Central/ka1_turnover!V -> 0.0004140121997 | F124: 1.060167867
A125: 103.32 | B125: 7.8978907e-30 | C125: 0.003806557568 | D125: 0.9446007797 | E125: =Central/ka1_turnover!V -> 0.0003806557568 | F125: 1.05864829
A126: 104.16 | B126: 4.41209623e-30 | C126: 0.003499868006 | D126: 0.9459227699 | E126: =Central/ka1_turnover!V -> 0.0003499868006 | F126: 1.057168758
A127: 105 | B127: 2.464783812e-30 | C127: 0.003217888037 | D127: 0.947213544 | E127: =Central/ka1_turnover!V -> 0.0003217888037 | F127: 1.055728147
A128: 105.84 | B128: 1.376932624e-30 | C128: 0.00295862684 | D128: 0.9484738125 | E128: =Central/ka1_turnover!V -> 0.000295862684 | F128: 1.054325367
A129: 106.68 | B129: 7.692128783e-31 | C129: 0.002720253991 | D129: 0.9497042717 | E129: =Central/ka1_turnover!V -> 0.0002720253991 | F129: 1.052959358
A130: 107.52 | B130: 4.297148909e-31 | C130: 0.002501086544 | D130: 0.9509056041 | E130: =Central/ka1_turnover!V -> 0.0002501086544 | F130: 1.051629095
A131: 108.36 | B131: 2.40056937e-31 | C131: 0.002299577143 | D131: 0.9520784784 | E131: =Central/ka1_turnover!V -> 0.0002299577143 | F131: 1.050333584
A132: =+A131+Tmax/200 -> 109.2 | B132: 1.341059717e-31 | C132: 0.002114303101 | D132: 0.9532235496 | E132: =Central/ka1_turnover!V -> 0.0002114303101 | F132: 1.049071858
A133: 110.04 | B133: 7.491727534e-32 | C133: 0.001943956356 | D133: 0.9543414594 | E133: =Central/ka1_turnover!V -> 0.0001943956356 | F133: 1.047842981
A134: 110.88 | B134: 4.185196284e-32 | C134: 0.001787334234 | D134: 0.9554328357 | E134: =Central/ka1_turnover!V -> 0.0001787334234 | F134: 1.046646046
A135: 111.72 | B135: 2.338027892e-32 | C135: 0.001643330959 | D135: 0.9564982937 | E135: =Central/ka1_turnover!V -> 0.0001643330959 | F135: 1.045480171
A136: 112.56 | B136: 1.306121399e-32 | C136: 0.001510929848 | D136: 0.9575384351 | E136: =Central/ka1_turnover!V -> 0.0001510929848 | F136: 1.044344502
A137: 113.4 | B137: 7.296547292e-33 | C137: 0.001389196128 | D137: 0.958553849 | E137: =Central/ka1_turnover!V -> 0.0001389196128 | F137: 1.043238208
A138: 114.24 | B138: 4.076160335e-33 | C138: 0.001277270341 | D138: 0.9595451117 | E138: =Central/ka1_turnover!V -> 0.0001277270341 | F138: 1.042160486
A139: 115.08 | B139: 2.277115793e-33 | C139: 0.001174362274 | D139: 0.9605127871 | E139: =Central/ka1_turnover!V -> 0.0001174362274 | F139: 1.041110554
A140: 115.92 | B140: 1.272093321e-33 | C140: 0.001079745381 | D140: 0.9614574266 | E140: =Central/ka1_turnover!V -> 0.0001079745381 | F140: 1.040087655
A141: 116.76 | B141: 7.106452035e-34 | C141: 0.0009927516515 | D141: 0.9623795698 | E141: =Central/ka1_turnover!V -> 9.927516515e-05 | F141: 1.039091052
A142: 117.6 | B142: 3.969965074e-34 | C142: 0.0009127668978 | D142: 0.9632797441 | E142: =Central/ka1_turnover!V -> 9.127668978e-05 | F142: 1.038120033
A143: 118.44 | B143: 2.217790623e-34 | C143: 0.0008392264154 | D143: 0.9641584654 | E143: =Central/ka1_turnover!V -> 8.392264154e-05 | F143: 1.037173904
A144: 119.28 | B144: 1.238951768e-34 | C144: 0.0007716109972 | D144: 0.965016238 | E144: =Central/ka1_turnover!V -> 7.716109972e-05 | F144: 1.036251993
A145: 120.12 | B145: 6.921309286e-35 | C145: 0.0007094432683 | D145: 0.9658535548 | E145: =Central/ka1_turnover!V -> 7.094432683e-05 | F145: 1.035353647
A146: 120.96 | B146: 3.866536493e-35 | C146: 0.0006522843153 | D146: 0.9666708979 | E146: =Central/ka1_turnover!V -> 6.522843153e-05 | F146: 1.034478231
A147: 121.8 | B147: 2.160011037e-35 | C147: 0.0005997305873 | D147: 0.9674687383 | E147: =Central/ka1_turnover!V -> 5.997305873e-05 | F147: 1.03362513
A148: 122.64 | B148: 1.206673645e-35 | C148: 0.0005514110472 | D148: 0.9682475364 | E148: =Central/ka1_turnover!V -> 5.514110472e-05 | F148: 1.032793746
A149: 123.48 | B149: 6.740990019e-36 | C149: 0.0005069845517 | D149: 0.9690077421 | E149: =Central/ka1_turnover!V -> 5.069845517e-05 | F149: 1.031983499
A150: 124.32 | B150: 3.765802513e-36 | C150: 0.0004661374432 | D150: 0.9697497951 | E150: =Central/ka1_turnover!V -> 4.661374432e-05 | F150: 1.031193824
A151: 125.16 | B151: 2.10373677e-36 | C151: 0.0004285813349 | D151: 0.970474125 | E151: =Central/ka1_turnover!V -> 4.285813349e-05 | F151: 1.030424175
A152: 126 | B152: 1.175236456e-36 | C152: 0.0003940510751 | D152: 0.9711811515 | E152: =Central/ka1_turnover!V -> 3.940510751e-05 | F152: 1.02967402
A153: 126.84 | B153: 6.565368567e-37 | C153: 0.0003623028749 | D153: 0.9718712848 | E153: =Central/ka1_turnover!V -> 3.623028749e-05 | F153: 1.02894284
A154: 127.68 | B154: 3.667692933e-37 | C154: 0.0003331125873 | D154: 0.9725449254 | E154: =Central/ka1_turnover!V -> 3.331125873e-05 | F154: 1.028230135
A155: 128.52 | B155: 2.048928603e-37 | C155: 0.0003062741246 | D155: 0.9732024648 | E155: =Central/ka1_turnover!V -> 3.062741246e-05 | F155: 1.027535417
A156: 129.36 | B156: 1.144618292e-37 | C156: 0.0002815980031 | D156: 0.9738442852 | E156: =Central/ka1_turnover!V -> 2.815980031e-05 | F156: 1.026858211
A157: 130.2 | B157: 6.394322541e-38 | C157: 0.0002589100056 | D157: 0.9744707601 | E157: =Central/ka1_turnover!V -> 2.589100056e-05 | F157: 1.026198056
A158: 131.04 | B158: 3.572139378e-38 | C158: 0.0002380499517 | D158: 0.9750822543 | E158: =Central/ka1_turnover!V -> 2.380499517e-05 | F158: 1.025554506
A159: 131.88 | B159: 1.995548341e-38 | C159: 0.0002188705661 | D159: 0.975679124 | E159: =Central/ka1_turnover!V -> 2.188705661e-05 | F159: 1.024927126
A160: 132.72 | B160: 1.114797817e-38 | C160: 0.0002012364395 | D160: 0.9762617172 | E160: =Central/ka1_turnover!V -> 2.012364395e-05 | F160: 1.024315491
A161: 133.56 | B161: 6.227732737e-39 | C161: 0.0001850230723 | D161: 0.9768303737 | E161: =Central/ka1_turnover!V -> 1.850230723e-05 | F161: 1.023719191
A162: 134.4 | B162: 3.479075258e-39 | C162: 0.0001701159958 | D162: 0.9773854253 | E162: =Central/ka1_turnover!V -> 1.701159958e-05 | F162: 1.023137827
A163: 135.24 | B163: 1.943558782e-39 | C163: 0.0001564099637 | D163: 0.9779271962 | E163: =Central/ka1_turnover!V -> 1.564099637e-05 | F163: 1.022571009
A164: =+A163+Tmax/200 -> 136.08 | B164: 1.085754248e-39 | C164: 0.0001438082094 | D164: 0.9784560028 | E164: =Central/ka1_turnover!V -> 1.438082094e-05 | F164: 1.022018361
A165: 136.92 | B165: 6.065483058e-40 | C165: 0.0001322217626 | D165: 0.9789721541 | E165: =Central/ka1_turnover!V -> 1.322217626e-05 | F165: 1.021479514
A166: 137.76 | B166: 3.388435717e-40 | C166: 0.0001215688212 | D166: 0.9794759519 | E166: =Central/ka1_turnover!V -> 1.215688212e-05 | F166: 1.020954111
A167: 138.6 | B167: 1.892923696e-40 | C167: 0.000111774174 | D167: 0.9799676909 | E167: =Central/ka1_turnover!V -> 1.11774174e-05 | F167: 1.020441806
A168: 139.44 | B168: 1.057467344e-40 | C168: 0.0001027686692 | D168: 0.9804476588 | E168: =Central/ka1_turnover!V -> 1.027686692e-05 | F168: 1.019942259
A169: 140.28 | B169: 5.907460433e-41 | C169: 9.448872661e-05 | D169: 0.9809161365 | E169: =Central/ka1_turnover!V -> 9.448872661e-06 | F169: 1.019455143
A170: 141.12 | B170: 3.300157586e-41 | C170: 8.687588859e-05 | D170: 0.9813733983 | E170: =Central/ka1_turnover!V -> 8.687588859e-06 | F170: 1.018980137
A171: 141.96 | B171: 1.843607793e-41 | C171: 7.987640736e-05 | D171: 0.9818197121 | E171: =Central/ka1_turnover!V -> 7.987640736e-06 | F171: 1.018516931
A172: 142.8 | B172: 1.029917392e-41 | C172: 7.344086555e-05 | D172: 0.9822553392 | E172: =Central/ka1_turnover!V -> 7.344086555e-06 | F172: 1.018065222
A173: 143.64 | B173: 5.753554735e-42 | C173: 6.752382726e-05 | D173: 0.9826805349 | E173: =Central/ka1_turnover!V -> 6.752382726e-06 | F173: 1.017624716
A174: 144.48 | B174: 3.214179345e-42 | C174: 6.208351731e-05 | D174: 0.9830955485 | E174: =Central/ka1_turnover!V -> 6.208351731e-06 | F174: 1.017195126
A175: 145.32 | B175: 1.795576706e-42 | C175: 5.70815263e-05 | D175: 0.9835006233 | E175: =Central/ka1_turnover!V -> 5.70815263e-06 | F175: 1.016776173
A176: 146.16 | B176: 1.003085193e-42 | C176: 5.248253942e-05 | D176: 0.9838959969 | E176: =Central/ka1_turnover!V -> 5.248253942e-06 | F176: 1.016367587
A177: 147 | B177: 5.603658706e-43 | C177: 4.825408714e-05 | D177: 0.984281901 | E177: =Central/ka1_turnover!V -> 4.825408714e-06 | F177: 1.015969103
A178: 147.84 | B178: 3.130441075e-43 | C178: 4.436631595e-05 | D178: 0.9846585622 | E178: =Central/ka1_turnover!V -> 4.436631595e-06 | F178: 1.015580464
A179: 148.68 | B179: 1.748796962e-43 | C179: 4.07917776e-05 | D179: 0.9850262015 | E179: =Central/ka1_turnover!V -> 4.07917776e-06 | F179: 1.015201422
A180: 149.52 | B180: 9.769520467e-44 | C180: 3.750523532e-05 | D180: 0.9853850346 | E180: =Central/ka1_turnover!V -> 3.750523532e-06 | F180: 1.014831731
A181: 150.36 | B181: 5.457667883e-44 | C181: 3.448348562e-05 | D181: 0.9857352721 | E181: =Central/ka1_turnover!V -> 3.448348562e-06 | F181: 1.014471155
A182: 151.2 | B182: 3.048884418e-44 | C182: 3.170519449e-05 | D182: 0.9860771197 | E182: =Central/ka1_turnover!V -> 3.170519449e-06 | F182: 1.014119464
A183: 152.04 | B183: 1.70323596e-44 | C183: 2.91507468e-05 | D183: 0.986410778 | E183: =Central/ka1_turnover!V -> 2.91507468e-06 | F183: 1.013776433
A184: 152.88 | B184: 9.514997413e-45 | C184: 2.680210774e-05 | D184: 0.9867364431 | E184: =Central/ka1_turnover!V -> 2.680210774e-06 | F184: 1.013441844
A185: 153.72 | B185: 5.315480526e-45 | C185: 2.464269559e-05 | D185: 0.9870543061 | E185: =Central/ka1_turnover!V -> 2.464269559e-06 | F185: 1.013115483
A186: 154.56 | B186: 2.969452539e-45 | C186: 2.265726456e-05 | D186: 0.9873645538 | E186: =Central/ka1_turnover!V -> 2.265726456e-06 | F186: 1.012797144
A187: 155.4 | B187: 1.658861948e-45 | C187: 2.083179721e-05 | D187: 0.9876673685 | E187: =Central/ka1_turnover!V -> 2.083179721e-06 | F187: 1.012486624
A188: 156.24 | B188: 9.267105389e-46 | C188: 1.915340547e-05 | D188: 0.9879629281 | E188: =Central/ka1_turnover!V -> 1.915340547e-06 | F188: 1.012183728
A189: 157.08 | B189: 5.176997543e-46 | C189: 1.761023965e-05 | D189: 0.9882514061 | E189: =Central/ka1_turnover!V -> 1.761023965e-06 | F189: 1.011888264
A190: 157.92 | B190: 2.89209008e-46 | C190: 1.619140476e-05 | D190: 0.9885329722 | E190: =Central/ka1_turnover!V -> 1.619140476e-06 | F190: 1.011600046
A191: 158.76 | B191: 1.615644002e-46 | C191: 1.488688362e-05 | D191: 0.9888077919 | E191: =Central/ka1_turnover!V -> 1.488688362e-06 | F191: 1.011318891
A192: 159.6 | B192: 9.025671639e-47 | C192: 1.36874661e-05 | D192: 0.9890760266 | E192: =Central/ka1_turnover!V -> 1.36874661e-06 | F192: 1.011044625
A193: 160.44 | B193: 5.042122425e-47 | C193: 1.258468415e-05 | D193: 0.989337834 | E193: =Central/ka1_turnover!V -> 1.258468415e-06 | F193: 1.010777073
A194: 161.28 | B194: 2.816743127e-47 | C194: 1.157075196e-05 | D194: 0.9895933681 | E194: =Central/ka1_turnover!V -> 1.157075196e-06 | F194: 1.010516069
A195: 162.12 | B195: 1.573552003e-47 | C195: 1.063851101e-05 | D195: 0.989842779 | E195: =Central/ka1_turnover!V -> 1.063851101e-06 | F195: 1.010261449
A196: =+A195+Tmax/200 -> 162.96 | B196: 8.790527906e-48 | C196: 9.781379536e-06 | D196: 0.9900862134 | E196: =Central/ka1_turnover!V -> 9.781379536e-07 | F196: 1.010013054
A197: 163.8 | B197: 4.910761178e-48 | C197: 8.993306073e-06 | D197: 0.9903238144 | E197: =Central/ka1_turnover!V -> 8.993306073e-07 | F197: 1.009770729
A198: 164.64 | B198: 2.74335917e-48 | C198: 8.268726698e-06 | D198: 0.9905557218 | E198: =Central/ka1_turnover!V -> 8.268726698e-07 | F198: 1.009534323
A199: 165.48 | B199: 1.532556617e-48 | C199: 7.602525774e-06 | D199: 0.9907820718 | E199: =Central/ka1_turnover!V -> 7.602525774e-07 | F199: 1.009303689
A200: 166.32 | B200: 8.561510319e-49 | C200: 6.989999822e-06 | D200: 0.9910029977 | E200: =Central/ka1_turnover!V -> 6.989999822e-07 | F200: 1.009078683
... 2 more rows
